[Event "Saint Louis Masters"]
[Date "2024.12.04"]
[White "Vazquez, Guillermo"]
[Black "Dudin, Gleb"]
[WhiteElo "2569"]
[BlackElo "2506"]
[Round "4.9"]
[Result "1/2-1/2"]
[TimeControl "5400+30"]

1. e4 {[%clk 01:30:57] [%emt 00:00:02]} c5 {[%clk 01:25:22] [%emt 00:05:39]} 2.
Nf3 {[%clk 01:30:45] [%emt 00:00:41]} d6 {[%clk 01:25:25] [%emt 00:00:28]} 3. d4
{[%clk 01:29:41] [%emt 00:01:34]} cxd4 {[%clk 01:25:36] [%emt 00:00:19]} 4. Qxd4
{[%clk 01:30:05] [%emt 00:00:06]} Nc6 {[%clk 01:24:19] [%emt 00:01:46]} 5. Qe3
{[%clk 01:29:14] [%emt 00:01:21]} g6 {[%clk 01:24:13] [%emt 00:00:36]} 6. Be2
{[%clk 01:29:10] [%emt 00:00:34]} Bg7 {[%clk 01:24:22] [%emt 00:00:21]} 7. O-O
{[%clk 01:29:33] [%emt 00:00:07]} Nf6 {[%clk 01:24:24] [%emt 00:00:29]} 8. h3
{[%clk 01:28:21] [%emt 00:01:42]} O-O {[%clk 01:24:35] [%emt 00:00:19]} 9. Rd1
{[%clk 01:28:35] [%emt 00:00:16]} Be6 {[%clk 01:24:27] [%emt 00:00:37]} 10. Nc3
{[%clk 01:27:43] [%emt 00:01:22]} Rc8 {[%clk 01:23:44] [%emt 00:01:13]} 11. Rb1
{[%clk 01:22:16] [%emt 00:05:57]} a6 {[%clk 01:22:10] [%emt 00:02:04]} 12. b3
{[%clk 01:16:36] [%emt 00:06:10]} b5 {[%clk 01:17:18] [%emt 00:05:22]} 13. Bb2
{[%clk 01:13:57] [%emt 00:03:09]} Nb4 {[%clk 01:11:14] [%emt 00:06:34]} 14. Rd2
{[%clk 01:06:20] [%emt 00:08:08]} Nd7 {[%clk 00:58:57] [%emt 00:12:46]} 15. Nd4
{[%clk 01:00:09] [%emt 00:06:42]} Qb6 {[%clk 00:57:10] [%emt 00:02:16]} 16. Bd1
{[%clk 00:55:22] [%emt 00:05:17]} Rc7 {[%clk 00:45:56] [%emt 00:11:45]} 17. a3
{[%clk 00:51:37] [%emt 00:04:15]} Nc6 {[%clk 00:43:52] [%emt 00:02:33]} 18. Nce2
{[%clk 00:51:31] [%emt 00:00:37]} Rfc8 {[%clk 00:42:51] [%emt 00:01:31]} 19.
Nxc6 {[%clk 00:41:19] [%emt 00:10:42]} Rxc6 {[%clk 00:41:01] [%emt 00:02:20]}
20. Nd4 {[%clk 00:41:38] [%emt 00:00:11]} R6c7 {[%clk 00:41:05] [%emt 00:00:25]}
21. Be2 {[%clk 00:40:10] [%emt 00:01:58]} Ne5 {[%clk 00:35:49] [%emt 00:05:47]}
22. Nxe6 {[%clk 00:29:55] [%emt 00:10:45]} Qxe3 {[%clk 00:36:10] [%emt
00:00:08]} 23. fxe3 {[%clk 00:30:23] [%emt 00:00:02]} fxe6 {[%clk 00:35:09]
[%emt 00:01:31]} 24. Bxe5 {[%clk 00:30:11] [%emt 00:00:42]} Bxe5 {[%clk
00:35:31] [%emt 00:00:08]} 25. c4 {[%clk 00:30:36] [%emt 00:00:05]} Rb8 {[%clk
00:32:35] [%emt 00:03:25]} 1/2-1/2

[Site "Europe Echecs"]

[Event "Saint Louis Masters"]
[Date "2024.12.04"]
[White "Kacharava, Nikolozi"]
[Black "Khanin, Semen"]
[WhiteElo "2510"]
[BlackElo "2568"]
[Round "4.10"]
[Result "1-0"]
[TimeControl "5400+30"]

1. e4 {[%clk 01:29:26] [%emt 00:01:33]} e5 {[%clk 01:30:55] [%emt 00:00:06]} 2.
Nf3 {[%clk 01:29:48] [%emt 00:00:08]} Nc6 {[%clk 01:31:21] [%emt 00:00:05]} 3.
Bc4 {[%clk 01:29:53] [%emt 00:00:24]} Nf6 {[%clk 01:31:43] [%emt 00:00:07]} 4.
Ng5 {[%clk 01:28:47] [%emt 00:01:37]} d5 {[%clk 01:32:08] [%emt 00:00:05]} 5.
exd5 {[%clk 01:29:12] [%emt 00:00:05]} Na5 {[%clk 01:32:35] [%emt 00:00:03]} 6.
Bb5+ {[%clk 01:29:35] [%emt 00:00:07]} c6 {[%clk 01:33:01] [%emt 00:00:04]} 7.
dxc6 {[%clk 01:29:58] [%emt 00:00:07]} bxc6 {[%clk 01:33:28] [%emt 00:00:04]} 8.
Bd3 {[%clk 01:29:43] [%emt 00:00:44]} Nd5 {[%clk 01:33:46] [%emt 00:00:13]} 9.
Nf3 {[%clk 01:29:17] [%emt 00:00:56]} Bd6 {[%clk 01:34:09] [%emt 00:00:07]} 10.
O-O {[%clk 01:29:06] [%emt 00:00:41]} O-O {[%clk 01:34:26] [%emt 00:00:13]} 11.
Re1 {[%clk 01:28:42] [%emt 00:00:54]} Re8 {[%clk 01:33:27] [%emt 00:01:29]} 12.
Nc3 {[%clk 01:26:39] [%emt 00:02:32]} f5 {[%clk 01:32:22] [%emt 00:01:35]} 13.
Bf1 {[%clk 01:25:42] [%emt 00:01:27]} Qf6 {[%clk 01:21:17] [%emt 00:11:36]} 14.
d4 {[%clk 01:16:06] [%emt 00:10:06]} e4 {[%clk 01:19:02] [%emt 00:02:45]} 15.
Ne5 {[%clk 01:15:49] [%emt 00:00:47]} Bxe5 {[%clk 01:09:07] [%emt 00:10:25]} 16.
dxe5 {[%clk 01:10:45] [%emt 00:05:34]} Qxe5 {[%clk 01:09:32] [%emt 00:00:05]}
17. Bd2 {[%clk 00:51:08] [%emt 00:20:07]} Nf6 {[%clk 01:05:03] [%emt 00:04:59]}
18. g3 {[%clk 00:48:40] [%emt 00:02:59]} Rd8 {[%clk 00:59:36] [%emt 00:05:57]}
19. Bf4 {[%clk 00:44:27] [%emt 00:04:43]} Qe7 {[%clk 00:57:36] [%emt 00:02:29]}
20. Qe2 {[%clk 00:43:54] [%emt 00:01:03]} Nd5 {[%clk 00:34:03] [%emt 00:24:03]}
21. Nxd5 {[%clk 00:43:27] [%emt 00:00:58]} cxd5 {[%clk 00:33:01] [%emt
00:01:32]} 22. Qb5 {[%clk 00:34:12] [%emt 00:09:45]} Nc4 {[%clk 00:33:25] [%emt
00:00:06]} 23. Bxc4 {[%clk 00:33:30] [%emt 00:01:12]} dxc4 {[%clk 00:33:52]
[%emt 00:00:03]} 24. Qxc4+ {[%clk 00:33:24] [%emt 00:00:36]} Be6 {[%clk
00:34:15] [%emt 00:00:07]} 25. Qe2 {[%clk 00:32:21] [%emt 00:01:33]} Qf6 {[%clk
00:30:31] [%emt 00:04:14]} 26. Qa6 {[%clk 00:27:41] [%emt 00:05:10]} Re8 {[%clk
00:28:56] [%emt 00:02:05]} 27. c3 {[%clk 00:23:38] [%emt 00:04:33]} Qf7 {[%clk
00:20:30] [%emt 00:08:54]} 28. b3 {[%clk 00:23:21] [%emt 00:00:47]} Qf6 {[%clk
00:17:43] [%emt 00:03:18]} 29. Qa5 {[%clk 00:21:16] [%emt 00:02:34]} Bf7 {[%clk
00:15:06] [%emt 00:03:07]} 30. Rad1 {[%clk 00:20:26] [%emt 00:01:20]} g5 {[%clk
00:15:30] [%emt 00:00:06]} 31. Be3 {[%clk 00:18:42] [%emt 00:02:14]} f4 {[%clk
00:14:29] [%emt 00:01:31]} 32. Bd4 {[%clk 00:17:00] [%emt 00:02:11]} Qh6 {[%clk
00:10:31] [%emt 00:04:29]} 33. gxf4 {[%clk 00:13:05] [%emt 00:04:26]} gxf4
{[%clk 00:10:19] [%emt 00:00:42]} 34. Kh1 {[%clk 00:13:24] [%emt 00:00:10]} Re6
{[%clk 00:09:04] [%emt 00:01:45]} 35. Rg1+ {[%clk 00:09:09] [%emt 00:04:45]} Bg6
{[%clk 00:09:30] [%emt 00:00:04]} 36. Qc7 {[%clk 00:06:49] [%emt 00:02:49]} Rae8
{[%clk 00:06:02] [%emt 00:03:59]} 37. Rg4 {[%clk 00:06:50] [%emt 00:00:29]} e3
{[%clk 00:05:34] [%emt 00:00:58]} 38. f3 {[%clk 00:06:18] [%emt 00:01:03]} R8e7
{[%clk 00:01:10] [%emt 00:04:53]} 39. Qd8+ {[%clk 00:04:51] [%emt 00:01:57]} Re8
{[%clk 00:01:19] [%emt 00:00:21]} 40. Qd5 {[%clk 00:04:33] [%emt 00:00:48]} Qf8
{[%clk 00:00:34] [%emt 00:01:15]} 41. h4 {[%clk 00:04:04] [%emt 00:00:59]} Qh6
{[%clk 00:00:40] [%emt 00:00:25]} 42. Kg2 {[%clk 00:03:50] [%emt 00:00:44]} Kf7
{[%clk 00:00:42] [%emt 00:00:27]} 43. c4 {[%emt 00:03:08]} Qh5 {[%clk 00:00:31]
[%emt 00:00:40]} 44. Rxf4+ {[%clk 00:01:07] [%emt 00:00:36]} Kg8 {[%clk
00:00:59] [%emt 00:00:02]} 45. Re1 {[%clk 00:01:00] [%emt 00:00:37]} e2 {[%clk
00:01:02] [%emt 00:00:27]} 46. Kf2 {[%clk 00:01:09] [%emt 00:00:21]} Qxd5 {[%clk
00:00:49] [%emt 00:00:43]} 47. cxd5 {[%clk 00:01:38] [%emt 00:00:01]} Ra6 {[%clk
00:00:33] [%emt 00:00:46]} 48. Rxe2 {[%clk 00:01:13] [%emt 00:00:55]} Rxe2+
{[%clk 00:01:01] [%emt 00:00:02]} 49. Kxe2 {[%clk 00:01:39] [%emt 00:00:05]}
Rxa2+ {[%clk 00:01:29] [%emt 00:00:02]} 50. Ke3 {[%clk 00:01:14] [%emt
00:00:53]} Ra3 {[%clk 00:01:54] [%emt 00:00:05]} 51. Kf2 {[%clk 00:01:03] [%emt
00:00:41]} Rxb3 {[%clk 00:01:31] [%emt 00:00:53]} 52. Bxa7 {[%clk 00:01:08]
[%emt 00:00:25]} Rb7 {[%clk 00:00:59] [%emt 00:01:03]} 53. Bc5 {[%clk 00:01:00]
[%emt 00:00:37]} Rb5 {[%clk 00:01:12] [%emt 00:00:17]} 54. Rf8+ {[%clk 00:01:14]
[%emt 00:00:16]} Kg7 {[%clk 00:01:39] [%emt 00:00:03]} 55. Rc8 {[%clk 00:01:14]
[%emt 00:00:30]} Kf6 {[%clk 00:01:47] [%emt 00:00:22]} 56. d6 {[%clk 00:01:20]
[%emt 00:00:24]} Rb7 {[%clk 00:00:40] [%emt 00:01:37]} 57. Be3 {[%clk 00:01:18]
[%emt 00:00:31]} Ke5 {[%clk 00:00:50] [%emt 00:00:21]} 58. Rd8 {[%clk 00:00:58]
[%emt 00:00:51]} Bf5 {[%clk 00:01:06] [%emt 00:00:13]} 59. Rf8 {[%clk 00:01:03]
[%emt 00:00:25]} Ke6 {[%clk 00:00:33] [%emt 00:01:04]} 60. Bf4 {[%clk 00:00:44]
[%emt 00:00:48]} Bg6 {[%clk 00:00:52] [%emt 00:00:11]} 61. Ra8 {[%clk 00:00:51]
[%emt 00:00:22]} Rb2+ {[%clk 00:00:36] [%emt 00:00:46]} 62. Kg3 {[%clk 00:01:09]
[%emt 00:00:13]} Rb7 {[%clk 00:00:46] [%emt 00:00:21]} 63. Ra5 {[%clk 00:01:27]
[%emt 00:00:12]} Kd7 {[%clk 00:00:42] [%emt 00:00:34]} 64. h5 {[%clk 00:01:42]
[%emt 00:00:14]} Bf7 {[%clk 00:00:36] [%emt 00:00:36]} 65. Kg4 {[%clk 00:01:31]
[%emt 00:00:42]} Be6+ {[%clk 00:00:34] [%emt 00:00:31]} 66. Kg5 {[%clk 00:01:47]
[%emt 00:00:14]} Rb8 {[%clk 00:00:52] [%emt 00:00:10]} 67. Ra7+ {[%clk 00:02:06]
[%emt 00:00:13]} Kc6 {[%clk 00:01:18] [%emt 00:00:05]} 68. Kf6 {[%clk 00:01:09]
[%emt 00:01:26]} Bh3 {[%clk 00:01:07] [%emt 00:00:40]} 69. Rc7+ {[%clk 00:01:19]
[%emt 00:00:21]} Kd5 {[%clk 00:01:33] [%emt 00:00:04]} 70. d7 {[%clk 00:01:00]
[%emt 00:00:50]} Rg8 {[%clk 00:01:14] [%emt 00:00:48]} 71. h6 {[%clk 00:01:12]
[%emt 00:00:18]} Rg6+ {[%clk 00:00:37] [%emt 00:01:07]} 72. Kf7 {[%clk 00:01:13]
[%emt 00:00:29]} 1-0

[Site "Europe Echecs"]

[Event "Saint Louis Masters"]
[Date "2024.12.05"]
[White "Theodorou, Nikolas"]
[Black "Caruana, Fabiano"]
[WhiteElo "2600"]
[BlackElo "2805"]
[Round "5.1"]
[Result "1/2-1/2"]
[TimeControl "5400+30"]

1. d4 {[%clk 01:30:05] [%emt 00:00:54]} Nf6 {[%clk 01:30:43] [%emt 00:00:18]} 2.
c4 {[%clk 01:30:28] [%emt 00:00:06]} e6 {[%clk 01:31:10] [%emt 00:00:04]} 3. Nf3
{[%clk 01:30:53] [%emt 00:00:05]} d5 {[%clk 01:31:36] [%emt 00:00:04]} 4. Nc3
{[%clk 01:31:18] [%emt 00:00:05]} Nbd7 {[%clk 01:31:19] [%emt 00:00:47]} 5. g3
{[%clk 01:30:09] [%emt 00:01:39]} Be7 {[%clk 01:31:20] [%emt 00:00:29]} 6. Bg2
{[%clk 01:30:08] [%emt 00:00:31]} O-O {[%clk 01:31:43] [%emt 00:00:08]} 7. Qd3
{[%clk 01:27:55] [%emt 00:02:42]} b6 {[%clk 01:31:12] [%emt 00:01:02]} 8. cxd5
{[%clk 01:25:35] [%emt 00:02:49]} Nxd5 {[%clk 01:31:23] [%emt 00:00:19]} 9. O-O
{[%clk 01:19:27] [%emt 00:06:38]} Bb7 {[%clk 01:31:21] [%emt 00:00:33]} 10. Rd1
{[%clk 01:19:50] [%emt 00:00:06]} Nxc3 {[%clk 01:30:17] [%emt 00:01:34]} 11.
bxc3 {[%clk 01:19:25] [%emt 00:00:55]} Nf6 {[%clk 01:26:31] [%emt 00:04:16]} 12.
Bg5 {[%clk 01:15:19] [%emt 00:04:37]} Be4 {[%clk 01:16:17] [%emt 00:10:44]} 13.
Qc4 {[%clk 01:13:48] [%emt 00:02:02]} c6 {[%clk 01:08:51] [%emt 00:07:55]} 14.
Ne5 {[%clk 01:08:37] [%emt 00:05:41]} Bxg2 {[%clk 01:08:52] [%emt 00:00:30]} 15.
Kxg2 {[%clk 01:09:04] [%emt 00:00:03]} Qd5+ {[%clk 01:09:11] [%emt 00:00:11]}
16. Qxd5 {[%clk 01:04:52] [%emt 00:04:41]} cxd5 {[%clk 01:09:32] [%emt
00:00:09]} 17. c4 {[%clk 01:04:48] [%emt 00:00:34]} dxc4 {[%clk 01:06:58] [%emt
00:03:04]} 18. Nxc4 {[%clk 01:04:48] [%emt 00:00:29]} h6 {[%clk 01:06:32] [%emt
00:00:57]} 19. Bxf6 {[%clk 01:04:20] [%emt 00:00:58]} gxf6 {[%clk 01:02:38]
[%emt 00:04:24]} 20. d5 {[%clk 00:59:22] [%emt 00:05:28]} Rfd8 {[%clk 01:00:39]
[%emt 00:02:30]} 21. Ne3 {[%clk 00:55:00] [%emt 00:04:52]} Bc5 {[%clk 00:57:43]
[%emt 00:03:26]} 22. dxe6 {[%clk 00:52:32] [%emt 00:02:58]} fxe6 {[%clk
00:58:01] [%emt 00:00:12]} 23. Kf3 {[%clk 00:52:52] [%emt 00:00:09]} Kf7 {[%clk
00:57:51] [%emt 00:00:41]} 24. g4 {[%clk 00:46:19] [%emt 00:07:02]} Ke7 {[%clk
00:55:34] [%emt 00:02:47]} 25. h4 {[%clk 00:43:10] [%emt 00:03:39]} Rac8 {[%clk
00:41:57] [%emt 00:14:08]} 26. Rxd8 {[%clk 00:40:33] [%emt 00:03:06]} Rxd8
{[%clk 00:42:18] [%emt 00:00:09]} 27. Rd1 {[%clk 00:40:41] [%emt 00:00:22]} Rc8
{[%clk 00:38:57] [%emt 00:03:53]} 28. Rc1 {[%clk 00:40:12] [%emt 00:00:58]} Kd6
{[%clk 00:33:28] [%emt 00:05:59]} 29. Rd1+ {[%clk 00:39:27] [%emt 00:01:16]} Ke7
{[%clk 00:33:36] [%emt 00:00:22]} 30. Rc1 {[%clk 00:39:52] [%emt 00:00:05]} a5
{[%clk 00:28:28] [%emt 00:05:38]} 31. Nf1 {[%clk 00:39:46] [%emt 00:00:36]} b5
{[%clk 00:22:10] [%emt 00:06:48]} 32. Nd2 {[%clk 00:35:45] [%emt 00:04:31]} Rc7
{[%clk 00:22:33] [%emt 00:00:07]} 33. Rb1 {[%clk 00:34:18] [%emt 00:01:57]} b4
{[%clk 00:17:34] [%emt 00:05:29]} 34. Nc4 {[%clk 00:34:35] [%emt 00:00:12]} Bxf2
{[%clk 00:16:43] [%emt 00:01:21]} 35. Nxa5 {[%clk 00:34:23] [%emt 00:00:42]} Bb6
{[%clk 00:16:48] [%emt 00:00:25]} 36. Nb3 {[%clk 00:34:29] [%emt 00:00:24]} Rc3+
{[%clk 00:14:21] [%emt 00:02:57]} 37. Kg2 {[%clk 00:34:57] [%emt 00:00:02]} Rc4
{[%clk 00:12:50] [%emt 00:02:01]} 38. Kf3 {[%clk 00:34:42] [%emt 00:00:44]} Rc3+
{[%clk 00:08:12] [%emt 00:05:08]} 39. Kg2 {[%clk 00:35:10] [%emt 00:00:02]} Rc4
{[%clk 00:08:40] [%emt 00:00:02]} 40. Kf3 {[%clk 00:35:09] [%emt 00:00:31]} e5
{[%clk 00:09:01] [%emt 00:00:09]} 41. e3 {[%clk 00:35:33] [%emt 00:00:06]} e4+
{[%clk 00:01:42] [%emt 00:07:49]} 42. Kf4 {[%clk 00:34:09] [%emt 00:01:54]} Ke6
{[%clk 00:01:54] [%emt 00:00:18]} 43. Nd4+ {[%clk 00:34:31] [%emt 00:00:07]}
Bxd4 {[%clk 00:01:51] [%emt 00:00:34]} 44. exd4 {[%clk 00:34:59] [%emt
00:00:02]} Kd5 {[%clk 00:02:12] [%emt 00:00:09]} 45. h5 {[%clk 00:20:17] [%emt
00:15:12]} Rc3 {[%clk 00:01:06] [%emt 00:01:36]} 46. Kf5 {[%clk 00:20:40] [%emt
00:00:07]} Rf3 {[%clk 00:01:13] [%emt 00:00:23]} 47. Kg6 {[%clk 00:21:08] [%emt
00:00:02]} Rf4 {[%clk 00:01:29] [%emt 00:00:15]} 48. Rg1 {[%clk 00:21:12] [%emt
00:00:25]} e3 {[%clk 00:01:08] [%emt 00:00:52]} 49. Kxh6 {[%clk 00:21:33] [%emt
00:00:09]} Kxd4 {[%clk 00:01:10] [%emt 00:00:28]} 50. Kg7 {[%clk 00:19:55] [%emt
00:02:07]} e2 {[%clk 00:01:34] [%emt 00:00:06]} 51. h6 {[%clk 00:20:24] [%emt
00:00:02]} Rf1 {[%clk 00:01:52] [%emt 00:00:12]} 52. Rxf1 {[%clk 00:20:37] [%emt
00:00:16]} exf1=Q {[%clk 00:02:17] [%emt 00:00:05]} 53. h7 {[%clk 00:21:05]
[%emt 00:00:03]} Qe2 {[%clk 00:00:44] [%emt 00:02:03]} 54. h8=Q {[%clk 00:21:28]
[%emt 00:00:06]} Qxg4+ {[%clk 00:01:10] [%emt 00:00:04]} 55. Kxf6 {[%clk
00:21:23] [%emt 00:00:36]} Kc3 {[%clk 00:00:42] [%emt 00:00:58]} 56. Qh2 {[%clk
00:18:44] [%emt 00:03:09]} Qe4 {[%clk 00:00:40] [%emt 00:00:32]} 57. Qf2 {[%clk
00:18:32] [%emt 00:00:42]} Kc4 {[%clk 00:00:37] [%emt 00:00:32]} 58. Qf1+ {[%clk
00:15:08] [%emt 00:03:54]} Kd4 {[%clk 00:01:04] [%emt 00:00:04]} 59. Qd1+ {[%clk
00:13:35] [%emt 00:02:03]} Kc5 {[%clk 00:01:26] [%emt 00:00:08]} 60. Qb3 {[%clk
00:10:37] [%emt 00:03:28]} Qe1 {[%clk 00:01:08] [%emt 00:00:48]} 61. Kf5 {[%clk
00:08:43] [%emt 00:02:24]} Kd4 {[%clk 00:01:30] [%emt 00:00:07]} 62. Qb2+ {[%clk
00:06:59] [%emt 00:02:14]} Kd3 {[%clk 00:01:56] [%emt 00:00:04]} 63. Qb3+ {[%clk
00:06:32] [%emt 00:00:57]} Kd4 {[%clk 00:02:10] [%emt 00:00:16]} 64. Qb2+ {[%clk
00:06:58] [%emt 00:00:04]} Qc3 {[%clk 00:02:37] [%emt 00:00:02]} 65. Qf2+ {[%clk
00:07:08] [%emt 00:00:20]} Kd3 {[%clk 00:03:04] [%emt 00:00:04]} 66. Ke6 {[%clk
00:06:47] [%emt 00:00:51]} Qc6+ {[%clk 00:03:29] [%emt 00:00:05]} 67. Ke5 {[%clk
00:06:44] [%emt 00:00:32]} Qc7+ {[%clk 00:03:13] [%emt 00:00:46]} 68. Ke6 {[%clk
00:06:43] [%emt 00:00:31]} Qc6+ {[%clk 00:03:08] [%emt 00:00:35]} 69. Ke5 {[%clk
00:07:07] [%emt 00:00:06]} Qe4+ {[%clk 00:03:31] [%emt 00:00:06]} 70. Kd6 {[%clk
00:07:24] [%emt 00:00:13]} Qd4+ {[%clk 00:03:58] [%emt 00:00:03]} 71. Qxd4+
{[%clk 00:07:50] [%emt 00:00:04]} Kxd4 {[%clk 00:04:26] [%emt 00:00:02]} 72. Kc6
{[%clk 00:08:14] [%emt 00:00:06]} b3 {[%clk 00:04:53] [%emt 00:00:04]} 73. axb3
{[%clk 00:08:40] [%emt 00:00:03]} Kc3 {[%clk 00:05:22] [%emt 00:00:02]} 74. Kd7
{[%clk 00:09:05] [%emt 00:00:05]} Kxb3 {[%clk 01:30:30] [%emt 00:00:03]} 1/2-1/2

[Site "Europe Echecs"]

[Event "Saint Louis Masters"]
[Date "2024.12.05"]
[White "Shankland, Sam"]
[Black "Cordova, Emilio"]
[WhiteElo "2672"]
[BlackElo "2531"]
[Round "5.2"]
[Result "0-1"]
[TimeControl "5400+30"]

1. e4 {[%clk 01:31:00] [%emt 15:20:28]} e6 {[%clk 01:21:55] [%emt 00:09:05]} 2.
d4 {[%clk 01:31:25] [%emt 00:00:05]} d5 {[%clk 01:22:15] [%emt 00:00:11]} 3. Nc3
{[%clk 01:31:49] [%emt 00:00:06]} a6 {[%clk 01:22:27] [%emt 00:00:18]} 4. Nf3
{[%clk 01:30:47] [%emt 00:01:31]} Nf6 {[%clk 01:22:41] [%emt 00:00:15]} 5. e5
{[%clk 01:31:09] [%emt 00:00:08]} Nfd7 {[%clk 01:22:57] [%emt 00:00:14]} 6. Ne2
{[%clk 01:31:25] [%emt 00:00:14]} c5 {[%clk 01:23:11] [%emt 00:00:15]} 7. c3
{[%clk 01:31:49] [%emt 00:00:07]} Nc6 {[%clk 01:23:26] [%emt 00:00:15]} 8. a3
{[%clk 01:28:59] [%emt 00:03:20]} Nb6 {[%clk 01:05:53] [%emt 00:18:03]} 9. Nf4
{[%clk 01:26:56] [%emt 00:02:32]} Bd7 {[%clk 01:05:46] [%emt 00:00:37]} 10. Bd3
{[%clk 01:23:03] [%emt 00:04:23]} Qc7 {[%clk 00:58:03] [%emt 00:08:14]} 11. O-O
{[%clk 01:20:48] [%emt 00:02:44]} c4 {[%clk 00:56:53] [%emt 00:01:40]} 12. Bc2
{[%clk 01:20:39] [%emt 00:00:39]} h6 {[%clk 00:57:17] [%emt 00:00:07]} 13. Be3
{[%clk 01:19:18] [%emt 00:01:51]} O-O-O {[%clk 00:56:32] [%emt 00:01:14]} 14.
Nh5 {[%clk 01:18:06] [%emt 00:01:42]} Na5 {[%clk 00:53:33] [%emt 00:03:30]} 15.
Nd2 {[%clk 01:17:52] [%emt 00:00:43]} Bc6 {[%clk 00:47:35] [%emt 00:06:29]} 16.
g4 {[%clk 01:14:23] [%emt 00:04:00]} g6 {[%clk 00:42:37] [%emt 00:05:27]} 17.
Ng3 {[%clk 01:14:17] [%emt 00:00:35]} h5 {[%clk 00:34:37] [%emt 00:08:30]} 18.
gxh5 {[%clk 01:10:42] [%emt 00:04:04]} gxh5 {[%clk 00:34:59] [%emt 00:00:09]}
19. Kh1 {[%clk 01:10:09] [%emt 00:01:03]} h4 {[%clk 00:32:02] [%emt 00:03:27]}
20. Ne2 {[%clk 01:09:31] [%emt 00:01:07]} Nd7 {[%clk 00:31:43] [%emt 00:00:49]}
21. Nf3 {[%clk 01:05:52] [%emt 00:04:09]} Nb3 {[%clk 00:32:03] [%emt 00:00:10]}
22. Rb1 {[%clk 01:04:54] [%emt 00:01:28]} Be7 {[%clk 00:31:57] [%emt 00:00:36]}
23. Nf4 {[%clk 01:01:21] [%emt 00:04:03]} Rhg8 {[%clk 00:25:59] [%emt 00:06:28]}
24. Rg1 {[%clk 00:59:36] [%emt 00:02:16]} Rxg1+ {[%clk 00:24:48] [%emt
00:01:41]} 25. Qxg1 {[%clk 00:58:55] [%emt 00:01:11]} Nxe5 {[%clk 00:24:34]
[%emt 00:00:44]} 26. Nxe5 {[%clk 00:39:29] [%emt 00:19:56]} Qxe5 {[%clk
00:24:50] [%emt 00:00:14]} 27. dxe5 {[%clk 00:36:31] [%emt 00:03:29]} d4+ {[%clk
00:25:03] [%emt 00:00:16]} 28. Ng2 {[%clk 00:36:38] [%emt 00:00:23]} h3 {[%clk
00:25:07] [%emt 00:00:26]} 29. cxd4 {[%clk 00:36:12] [%emt 00:00:56]} Nxd4
{[%clk 00:23:08] [%emt 00:02:29]} 30. Bxd4 {[%clk 00:34:50] [%emt 00:01:53]}
hxg2+ {[%clk 00:23:23] [%emt 00:00:15]} 31. Qxg2 {[%clk 00:35:17] [%emt
00:00:03]} Bxg2+ {[%clk 00:23:46] [%emt 00:00:06]} 32. Kxg2 {[%clk 00:35:44]
[%emt 00:00:03]} Rxd4 {[%clk 00:24:10] [%emt 00:00:06]} 33. Rd1 {[%clk 00:35:42]
[%emt 00:00:32]} Bc5 {[%clk 00:22:32] [%emt 00:02:07]} 34. Kg3 {[%clk 00:34:05]
[%emt 00:02:08]} Rxd1 {[%clk 00:22:31] [%emt 00:00:31]} 35. Bxd1 {[%clk
00:34:32] [%emt 00:00:04]} Bd4 {[%clk 00:22:56] [%emt 00:00:04]} 36. b3 {[%clk
00:34:51] [%emt 00:00:12]} Bxe5+ {[%clk 00:12:31] [%emt 00:10:54]} 37. f4 {[%clk
00:34:52] [%emt 00:00:28]} Bd6 {[%clk 00:12:57] [%emt 00:00:05]} 38. bxc4 {[%clk
00:23:36] [%emt 00:11:47]} Bxa3 {[%clk 00:13:13] [%emt 00:00:13]} 39. Kg4 {[%clk
00:23:41] [%emt 00:00:25]} Kd7 {[%clk 00:12:39] [%emt 00:01:03]} 40. h4 {[%clk
00:22:42] [%emt 00:01:29]} f5+ {[%clk 00:11:12] [%emt 00:01:58]} 41. Kg5 {[%clk
00:20:10] [%emt 00:03:02]} Be7+ {[%clk 00:11:35] [%emt 00:00:06]} 42. Kg6 {[%clk
00:20:08] [%emt 00:00:33]} Bxh4 {[%clk 00:11:58] [%emt 00:00:07]} 43. c5 {[%clk
00:19:19] [%emt 00:01:19]} Bf2 {[%clk 00:05:34] [%emt 00:06:53]} 44. Bf3 {[%clk
00:15:38] [%emt 00:04:12]} Bxc5 {[%clk 00:05:32] [%emt 00:00:32]} 45. Bxb7
{[%clk 00:16:04] [%emt 00:00:04]} a5 {[%clk 00:05:58] [%emt 00:00:04]} 46. Ba6
{[%clk 00:15:38] [%emt 00:00:57]} Ke7 {[%clk 00:04:58] [%emt 00:01:29]} 47. Bb5
{[%clk 00:16:00] [%emt 00:00:08]} Bd6 {[%clk 00:05:13] [%emt 00:00:15]} 48. Kg5
{[%clk 00:16:09] [%emt 00:00:22]} Kf7 {[%clk 00:04:13] [%emt 00:01:28]} 49. Bd7
{[%clk 00:15:25] [%emt 00:01:15]} Be7+ {[%clk 00:04:38] [%emt 00:00:04]} 50. Kh5
{[%clk 00:15:50] [%emt 00:00:06]} Kf6 {[%clk 00:03:28] [%emt 00:01:40]} 51. Kh4
{[%clk 00:16:16] [%emt 00:00:05]} e5 {[%clk 00:03:40] [%emt 00:00:18]} 52. Kg3
{[%clk 00:16:43] [%emt 00:00:03]} Bd6 {[%clk 00:03:20] [%emt 00:00:50]} 53.
fxe5+ {[%clk 00:17:06] [%emt 00:00:07]} Kxe5 {[%clk 00:03:48] [%emt 00:00:02]}
54. Kf3 {[%clk 00:17:21] [%emt 00:00:14]} f4 {[%clk 00:04:13] [%emt 00:00:05]}
55. Ke2 {[%clk 00:16:10] [%emt 00:01:42]} Kd4 {[%clk 00:04:38] [%emt 00:00:04]}
56. Be8 {[%clk 00:14:58] [%emt 00:01:42]} Kc3 {[%clk 00:05:02] [%emt 00:00:06]}
57. Bc6 {[%clk 00:14:22] [%emt 00:01:06]} Bf8 {[%clk 00:02:22] [%emt 00:03:10]}
58. Be8 {[%clk 00:13:33] [%emt 00:01:20]} Bh6 {[%clk 00:02:46] [%emt 00:00:05]}
59. Bc6 {[%clk 00:12:08] [%emt 00:01:55]} Kb4 {[%clk 00:02:34] [%emt 00:00:43]}
60. Kd3 {[%clk 00:12:24] [%emt 00:00:14]} a4 {[%clk 00:03:00] [%emt 00:00:04]}
61. Bf3 {[%clk 00:10:52] [%emt 00:02:02]} a3 {[%clk 00:03:19] [%emt 00:00:11]}
62. Bd5 {[%clk 00:11:16] [%emt 00:00:05]} f3 {[%clk 00:02:56] [%emt 00:00:53]}
0-1

[Site "Europe Echecs"]